[Event "European Womens-ch 2025"]
[Site "Rhodes"]
[Date "2025.04.10"]
[Round "10.36"]
[White "Donghvani, Nia"]
[Black "Sandu, Mihaela"]
[Result "1/2-1/2"]
[Annotator "ChessBase"]
[ECO "C95"]
[WhiteElo "2025"]
[BlackElo "2230"]
[PlyCount "90"]
[EventDate "2025.03.29"]
[EventType "swiss"]
[EventCountry "GRE"]
[SourceTitle "playchess.com"]
[Source "ChessBase"]
[SourceQuality "1"]
[TimeControl "40/5400+30:1800+30"]

1. e4 {[%emt 0:00:05]} e5 {[%emt 0:00:21]} 2. Nf3 {[%emt 0:00:11]} Nc6 {[%emt 0:00:05]} 3. Bb5 {[%emt 0:00:12]} a6 {[%emt 0:00:15]} 4. Ba4 {[%emt 0:00:04]} Nf6 {[%emt 0:00:05]} 5. O-O {[%emt 0:00:05]} Be7 {[%emt 0:00:06]} 6. Re1 {[%emt 0:00:18]} b5 {[%emt 0:00:20]} 7. Bb3 {[%emt 0:00:10]} d6 {[%emt 0:00:05]} 8. c3 {[%emt 0:00:27]} O-O {[%emt 0:00:09]} 9. h3 {[%emt 0:00:39]} Nb8 {[%emt 0:00:16]} 10. d4 {[%emt 0:00:19]} Nbd7 {[%emt 0:00:54]} 11. c4 {[%emt 0:00:46]} Bb7 {[%emt 0:08:17]} 12. Nc3 {[%emt 0:01:01]} b4 {[%emt 0:11:08]} 13. Nd5 {[%emt 0:00:08]} Nxd5 {[%emt 0:18:53]} 14. exd5 {[%emt 0:00:28]} Bf6 {[%emt 0:00:15]} 15. Be3 {[%emt 0:24:03]} a5 {[%emt 0:07:38]} 16. Bc2 {[%emt 0:16:46]} Re8 17. Qd2 {[%emt 0:53:18]} c6 {[%emt 0:17:34]} 18. dxc6 {[%emt 0:00:00]} Bxc6 {[%emt 0:00:04]} 19. d5 {[%emt 0:00:00]} Bb7 {[%emt 0:00:06]} 20. Ng5 {[%emt 0:00:00]} Bxg5 {[%emt 0:06:56]} 21. Bxg5 {[%emt 0:00:00]} f6 {[%emt 0:01:12]} 22. Be3 {[%emt 0:02:30]} g6 {[%emt 0:26:51]} 23. h4 {[%emt 0:00:00]} Rc8 {[%emt 0:00:00]} 24. b3 {[%emt 0:00:00]} Nc5 {[%emt 0:00:00]} 25. f4 {[%emt 0:00:00]} Qd7 {[%emt 0:00:00]} 26. Qf2 {[%emt 0:00:00]} Rc7 {[%emt 0:00:00]} 27. fxe5 {[%emt 0:00:00]} fxe5 {[%emt 0:00:00]} 28. Rf1 {[%emt 0:00:00]} Bc8 {[%emt 0:00:00]} 29. Rae1 {[%emt 0:00:00]} Qg7 {[%emt 0:00:00]} 30. Qd2 {[%emt 0:00:00]} Rf7 {[%emt 0:00:00]} 31. Bh6 {[%emt 0:00:00]} Rxf1+ {[%emt 0:00:00]} 32. Rxf1 {[%emt 0:00:00]} Qe7 {[%emt 0:00:00]} 33. Bg5 {[%emt 0:00:00]} Qd7 {[%emt 0:00:00]} 34. Qf2 {[%emt 0:00:00]} e4 {[%emt 0:00:00]} 35. Qf6 {[%emt 0:00:00]} Qg7 {[%emt 0:00:00]} 36. Qxd6 {[%emt 0:00:00]} Nd3 {[%emt 0:00:15]} 37. Be3 {[%emt 0:00:00]} Bf5 {[%emt 0:01:04]} 38. Qb6 {[%emt 0:00:00]} Qe7 {[%emt 0:03:35]} 39. h5 {[%emt 0:00:18]} Ne5 {[%emt 0:00:23]} 40. hxg6 {[%emt 0:00:00]} hxg6 {[%emt 0:00:00]} 41. Rf4 {[%emt 0:19:39]} Qh7 {[%emt 0:05:48]} 42. Bxe4 {[%emt 0:05:23]} Ng4 {[%emt 0:00:35]} 43. Rxg4 {[%emt 0:01:30]} Bxg4 {[%emt 0:00:06]} 44. Bxg6 {[%emt 0:14:10]} Qh4 {[%emt 0:00:14]} 45. Bxe8 {[%emt 0:00:00]} Qe1+ {[%emt 0:00:05]} 1/2-1/2

[Event "European Womens-ch 2025"]
[Site "Rhodes"]
[Date "2025.04.10"]
[Round "10.37"]
[White "Rudzinska, Michalina"]
[Black "Tirpan, Ceren"]
[Result "1-0"]
[Annotator "ChessBase"]
[ECO "B28"]
[WhiteElo "2223"]
[BlackElo "1996"]
[PlyCount "63"]
[EventDate "2025.03.29"]
[EventType "swiss"]
[EventCountry "GRE"]
[SourceTitle "playchess.com"]
[Source "ChessBase"]
[SourceQuality "1"]
[TimeControl "40/5400+30:1800+30"]

1. e4 {[%emt 0:00:02]} c5 {[%emt 0:02:28]} 2. Nf3 {[%emt 0:00:12]} a6 {[%emt 0:00:46]} 3. c3 {[%emt 0:00:46]} e6 {[%emt 0:02:16]} 4. d4 {[%emt 0:00:21]} d5 {[%emt 0:00:06]} 5. e5 {[%emt 0:00:19]} Bd7 {[%emt 0:01:44]} 6. Bd3 {[%emt 0:05:32]} Nc6 {[%emt 0:07:22]} 7. O-O {[%emt 0:06:47]} cxd4 {[%emt 0:07:29]} 8. cxd4 {[%emt 0:00:27]} Nb4 {[%emt 0:00:08]} 9. Be2 {[%emt 0:01:44]} Ne7 {[%emt 0:00:48]} 10. Nc3 {[%emt 0:05:53]} Ng6 {[%emt 0:02:55]} 11. g3 {[%emt 0:03:52]} f6 {[%emt 0:14:52]} 12. exf6 {[%emt 0:02:14]} gxf6 {[%emt 0:02:37]} 13. a3 {[%emt 0:19:32]} Nc6 {[%emt 0:00:21]} 14. b4 {[%emt 0:00:24]} Bg7 {[%emt 0:08:27]} 15. h4 {[%emt 0:01:39]} O-O {[%emt 0:01:27]} 16. h5 {[%emt 0:01:19]} Nge7 {[%emt 0:00:07]} 17. Re1 {[%emt 0:13:23]} Be8 {[%emt 0:06:48]} 18. h6 {[%emt 0:10:31]} Bh8 {[%emt 0:00:07]} 19. Bd3 {[%emt 0:02:20]} Bf7 {[%emt 0:01:56]} 20. b5 {[%emt 0:04:43]} axb5 {[%emt 0:01:41]} 21. Nxb5 {[%emt 0:00:04]} Ng6 {[%emt 0:11:12]} 22. Bf4 {[%emt 0:03:42]} e5 {[%emt 0:08:02]} 23. Bxg6 {[%emt 0:01:20]} Bxg6 {[%emt 0:00:09]} 24. dxe5 {[%emt 0:02:05]} fxe5 {[%emt 0:06:00]} 25. Nxe5 {[%emt 0:00:24]} Nxe5 {[%emt 0:00:09]} 26. Bxe5 {[%emt 0:00:06]} Bxe5 {[%emt 0:00:34]} 27. Rxe5 {[%emt 0:00:05]} Rxf2 {[%emt 0:05:59]} 28. Qd4 {[%emt 0:00:43]} Rf7 {[%emt 0:00:07]} 29. Nc3 {[%emt 0:03:30]} Qf8 {[%emt 0:01:12]} 30. Nxd5 {[%emt 0:01:30]} Rxa3 {[%emt 0:05:48]} 31. Rxa3 {[%emt 0:01:05]} Qxa3 {[%emt 0:00:42]} 32. Re8+ {[%emt 0:00:09]} 1-0

[Event "European Womens-ch 2025"]
[Site "Rhodes"]
[Date "2025.04.10"]
[Round "10.38"]
[White "Vidic, Teja"]
[Black "Dwilewicz, Katarzyna"]
[Result "1/2-1/2"]
[Annotator "ChessBase"]
[ECO "B32"]
[WhiteElo "2100"]
[BlackElo "2203"]
[PlyCount "94"]
[EventDate "2025.03.29"]
[EventType "swiss"]
[EventCountry "GRE"]
[SourceTitle "playchess.com"]
[Source "ChessBase"]
[SourceQuality "1"]
[TimeControl "40/5400+30:1800+30"]

1. e4 {[%emt 0:00:03]} c5 {[%emt 0:00:12]} 2. Nf3 {[%emt 0:00:06]} Nc6 {[%emt 0:00:15]} 3. d4 {[%emt 0:00:06]} cxd4 {[%emt 0:00:07]} 4. Nxd4 {[%emt 0:00:05]} e5 {[%emt 0:00:24]} 5. Nb5 {[%emt 0:00:25]} a6 {[%emt 0:00:11]} 6. Nd6+ {[%emt 0:00:24]} Bxd6 {[%emt 0:00:06]} 7. Qxd6 {[%emt 0:00:04]} Qe7 {[%emt 0:00:05]} 8. Qd3 {[%emt 0:03:27]} Nf6 {[%emt 0:09:41]} 9. Bg5 {[%emt 0:03:07]} h6 {[%emt 0:01:52]} 10. Bxf6 {[%emt 0:03:47]} Qxf6 {[%emt 0:00:06]} 11. Nc3 {[%emt 0:00:12]} O-O {[%emt 0:09:48]} 12. f3 {[%emt 0:07:18]} d6 {[%emt 0:09:48]} 13. O-O-O {[%emt 0:00:30]} Be6 {[%emt 0:00:12]} 14. Nd5 {[%emt 0:03:24]} Qd8 {[%emt 0:01:29]} 15. Kb1 {[%emt 0:03:26]} Rc8 {[%emt 0:02:11]} 16. Qa3 {[%emt 0:07:53]} b5 {[%emt 1:02:03]} 17. c3 {[%emt 0:08:03]} Ra8 {[%emt 0:00:00]} 18. Be2 {[%emt 0:02:12]} Qb8 {[%emt 0:00:00]} 19. Rd2 {[%emt 0:12:07]} Rc8 {[%emt 0:00:00]} 20. Rhd1 {[%emt 0:07:33]} a5 {[%emt 0:00:00]} 21. Ka1 {[%emt 0:00:06]} b4 {[%emt 0:00:00]} 22. Qa4 {[%emt 0:01:33]} Qa7 {[%emt 0:03:00]} 23. Bb5 {[%emt 0:04:34]} Bxd5 {[%emt 0:00:00]} 24. Rxd5 {[%emt 0:04:46]} Ne7 {[%emt 0:00:00]} 25. Rxd6 {[%emt 0:01:17]} bxc3 {[%emt 0:00:00]} 26. bxc3 {[%emt 0:00:24]} Qc5 {[%emt 0:00:00]} 27. c4 {[%emt 0:01:36]} Ng6 {[%emt 0:00:00]} 28. g3 {[%emt 0:01:44]} Qf2 {[%emt 0:03:00]} 29. Qb3 {[%emt 0:05:47]} a4 {[%emt 0:00:00]} 30. Bxa4 {[%emt 0:00:44]} Qxh2 {[%emt 0:00:00]} 31. g4 {[%emt 0:08:21]} Qf2 {[%emt 0:00:00]} 32. Bb5 {[%emt 0:00:30]} Nf4 {[%emt 0:00:00]} 33. R6d2 {[%emt 0:02:34]} Qc5 {[%emt 0:00:00]} 34. Qb2 {[%emt 0:01:31]} Kh7 {[%emt 0:00:00]} 35. Rd7 {[%emt 0:00:44]} f6 {[%emt 0:00:00]} 36. Rb7 {[%emt 0:02:02]} Rd8 {[%emt 0:00:00]} 37. Rbd7 {[%emt 0:00:24]} Rdb8 {[%emt 0:01:23]} 38. Qd2 {[%emt 0:04:43]} Ra3 {[%emt 0:01:19]} 39. Qd6 {[%emt 0:01:13]} Qxd6 {[%emt 0:01:29]} 40. R1xd6 {[%emt 0:00:00]} Rba8 {[%emt 0:00:00]} 41. Rd2 {[%emt 0:08:11]} Rxf3 {[%emt 0:32:19]} 42. R7d6 {[%emt 0:02:09]} Kg6 {[%emt 0:00:00]} 43. c5 {[%emt 0:07:35]} Rc3 {[%emt 0:00:00]} 44. c6 {[%emt 0:00:48]} Rc5 {[%emt 0:00:00]} 45. Rb2 {[%emt 0:02:05]} Ra3 {[%emt 0:00:00]} 46. Rb4 {[%emt 0:13:57]} Rc2 {[%emt 0:02:30]} 47. Kb1 Rcxa2 {[%emt 0:00:30]} 1/2-1/2

[Event "European Womens-ch 2025"]
[Site "Rhodes"]
[Date "2025.04.10"]
[Round "10.39"]
[White "Gaboyan, Susanna"]
[Black "Hapala, Elisabeth"]
[Result "1-0"]
[Annotator "ChessBase"]
[ECO "B48"]
[WhiteElo "2200"]
[BlackElo "2092"]
[PlyCount "105"]
[EventDate "2025.03.29"]
[EventType "swiss"]
[EventCountry "GRE"]
[SourceTitle "playchess.com"]
[Source "ChessBase"]
[SourceQuality "1"]
[TimeControl "40/5400+30:1800+30"]

1. e4 {[%emt 0:01:41]} c5 {[%emt 0:00:05]} 2. Nf3 {[%emt 0:00:04]} e6 {[%emt 0:00:04]} 3. d4 {[%emt 0:00:06]} cxd4 {[%emt 0:00:06]} 4. Nxd4 {[%emt 0:00:03]} Nc6 {[%emt 0:00:34]} 5. Nc3 {[%emt 0:00:23]} Qc7 {[%emt 0:00:05]} 6. f4 {[%emt 0:00:06]} a6 {[%emt 0:00:12]} 7. Be3 {[%emt 0:00:06]} b5 {[%emt 0:09:31]} 8. Bd3 {[%emt 0:04:58]} Bb7 {[%emt 0:15:22]} 9. Qf3 {[%emt 0:06:25]} Rc8 {[%emt 0:12:09]} 10. a3 {[%emt 0:10:04]} Na5 {[%emt 0:10:29]} 11. Ncxb5 {[%emt 0:26:06]} axb5 {[%emt 0:01:05]} 12. Nxb5 {[%emt 0:00:06]} Qb8 {[%emt 0:16:41]} 13. Ba7 {[%emt 0:05:03]} Qa8 {[%emt 0:00:05]} 14. Bb6 {[%emt 0:00:04]} Nf6 {[%emt 0:02:10]} 15. Nc7+ {[%emt 0:02:39]} Rxc7 {[%emt 0:00:06]} 16. Bxc7 {[%emt 0:00:03]} Nxe4 {[%emt 0:01:35]} 17. Qh5 {[%emt 0:01:23]} Nc5 {[%emt 0:04:27]} 18. Bf1 {[%emt 0:07:48]} Nc6 {[%emt 0:03:28]} 19. O-O-O {[%emt 0:02:30]} Be7 {[%emt 0:00:44]} 20. Bd3 {[%emt 0:04:16]} Nxd3+ {[%emt 0:11:40]} 21. Rxd3 {[%emt 0:01:04]} Nb4 {[%emt 0:03:23]} 22. Rg3 {[%emt 0:02:34]} Qa4 {[%emt 0:01:31]} 23. Qd1 {[%emt 0:06:57]} Nd5 {[%emt 0:01:21]} 24. Be5 {[%emt 0:00:20]} Bf6 {[%emt 0:01:07]} 25. Kb1 {[%emt 0:04:40]} O-O {[%emt 0:02:08]} 26. Qg4 {[%emt 0:03:27]} Bxe5 {[%emt 0:02:19]} 27. fxe5 {[%emt 0:00:09]} Qxg4 {[%emt 0:00:05]} 28. Rxg4 {[%emt 0:00:04]} Ne3 {[%emt 0:00:43]} 29. Rg3 {[%emt 0:00:17]} Nf5 {[%emt 0:01:11]} 30. Rd3 {[%emt 0:05:40]} Bxg2 {[%emt 0:00:16]} 31. Rg1 {[%emt 0:00:32]} Bd5 {[%emt 0:00:40]} 32. b3 {[%emt 0:00:37]} Rc8 {[%emt 0:00:32]} 33. Kb2 {[%emt 0:00:15]} Be4 {[%emt 0:00:30]} 34. Rc3 {[%emt 0:00:25]} Rb8 {[%emt 0:00:28]} 35. Rc7 {[%emt 0:02:41]} Bc6 {[%emt 0:00:12]} 36. c4 {[%emt 0:00:12]} Kf8 {[%emt 0:00:40]} 37. b4 {[%emt 0:00:29]} Ke8 {[%emt 0:00:26]} 38. Ra7 {[%emt 0:01:11]} Kd8 {[%emt 0:00:29]} 39. Kc3 {[%emt 0:00:19]} Bb7 {[%emt 0:00:38]} 40. a4 {[%emt 0:00:00]} Kc8 {[%emt 0:00:00]} 41. a5 {[%emt 0:01:04]} Ra8 {[%emt 0:23:23]} 42. Rxa8+ {[%emt 0:01:02]} Bxa8 {[%emt 0:00:02]} 43. b5 {[%emt 0:00:59]} Kc7 {[%emt 0:01:41]} 44. Kb4 {[%emt 0:01:16]} f6 {[%emt 0:01:28]} 45. exf6 {[%emt 0:02:36]} gxf6 {[%emt 0:00:14]} 46. Rg8 {[%emt 0:01:42]} Be4 {[%emt 0:00:28]} 47. a6 {[%emt 0:00:53]} Ne7 {[%emt 0:00:54]} 48. Rf8 {[%emt 0:00:27]} f5 {[%emt 0:02:16]} 49. Ka5 {[%emt 0:03:04]} Nc8 {[%emt 0:02:33]} 50. c5 {[%emt 0:00:13]} Ba8 {[%emt 0:01:42]} 51. b6+ {[%emt 0:01:18]} Kb8 {[%emt 0:00:05]} 52. a7+ {[%emt 0:00:25]} Kb7 {[%emt 0:00:05]} 53. c6+ {[%emt 0:00:11]} 1-0

[Event "European Womens-ch 2025"]
[Site "Rhodes"]
[Date "2025.04.10"]
[Round "10.40"]
[White "Prado Acebo, Ines"]
[Black "Sivanandan, Bodhana"]
[Result "1/2-1/2"]
[Annotator "ChessBase"]
[ECO "D45"]
[WhiteElo "2199"]
[BlackElo "2073"]
[PlyCount "120"]
[EventDate "2025.03.29"]
[EventType "swiss"]
[EventCountry "GRE"]
[SourceTitle "playchess.com"]
[Source "ChessBase"]
[SourceQuality "1"]
[TimeControl "40/5400+30:1800+30"]

1. d4 {[%emt 0:00:04]} d5 {[%emt 0:00:41]} 2. c4 {[%emt 0:00:15]} c6 {[%emt 0:00:30]} 3. Nf3 {[%emt 0:00:08]} Nf6 {[%emt 0:00:27]} 4. Nc3 {[%emt 0:00:11]} e6 {[%emt 0:00:27]} 5. e3 {[%emt 0:00:10]} Nbd7 {[%emt 0:00:34]} 6. Qc2 {[%emt 0:00:08]} Bd6 {[%emt 0:00:43]} 7. Be2 {[%emt 0:00:13]} O-O {[%emt 0:00:48]} 8. O-O {[%emt 0:00:09]} Re8 {[%emt 0:01:04]} 9. b3 {[%emt 0:00:47]} b6 {[%emt 0:01:46]} 10. a4 {[%emt 0:00:40]} a5 {[%emt 0:02:32]} 11. Bb2 {[%emt 0:03:00]} Bb7 {[%emt 0:01:29]} 12. Rad1 {[%emt 0:06:15]} Qc7 {[%emt 0:03:51]} 13. h3 {[%emt 0:06:27]} Rad8 {[%emt 0:03:59]} 14. Rc1 {[%emt 0:04:45]} dxc4 {[%emt 0:02:28]} 15. Bxc4 {[%emt 0:01:30]} h6 {[%emt 0:02:50]} 16. e4 {[%emt 0:13:41]} e5 {[%emt 0:01:41]} 17. d5 {[%emt 0:05:33]} cxd5 {[%emt 0:03:55]} 18. exd5 {[%emt 0:00:44]} Nc5 {[%emt 0:02:19]} 19. Nh4 {[%emt 0:04:29]} Ba6 {[%emt 0:10:40]} 20. Nb5 {[%emt 0:05:39]} Bxb5 {[%emt 0:01:59]} 21. Bxb5 {[%emt 0:00:04]} Rf8 {[%emt 0:02:41]} 22. Bc4 {[%emt 0:08:04]} Qb7 {[%emt 0:11:50]} 23. Nf5 {[%emt 0:11:54]} Bb8 {[%emt 0:06:08]} 24. d6 {[%emt 0:04:23]} Qe4 {[%emt 0:04:01]} 25. Qxe4 {[%emt 0:01:33]} Ncxe4 {[%emt 0:02:47]} 26. Bxe5 {[%emt 0:01:20]} Bxd6 {[%emt 0:01:02]} 27. Nxd6 {[%emt 0:03:00]} Nxd6 {[%emt 0:00:11]} 28. Ba6 {[%emt 0:05:13]} Nde4 {[%emt 0:09:48]} 29. Bc7 {[%emt 0:05:27]} Rde8 {[%emt 0:02:26]} 30. Rfd1 {[%emt 0:01:09]} Kh7 {[%emt 0:06:43]} 31. Bc4 {[%emt 0:00:59]} Ra8 {[%emt 0:01:25]} 32. Bxb6 {[%emt 0:01:30]} Ng5 {[%emt 0:04:47]} 33. Re1 {[%emt 0:03:10]} Rfb8 {[%emt 0:00:44]} 34. Bd4 {[%emt 0:01:24]} Re8 {[%emt 0:01:46]} 35. Bb5 {[%emt 0:01:05]} Rxe1+ {[%emt 0:00:26]} 36. Rxe1 {[%emt 0:00:02]} Ne6 {[%emt 0:00:19]} 37. Be3 {[%emt 0:01:19]} g6 {[%emt 0:02:18]} 38. Bc4 {[%emt 0:00:19]} Nd7 {[%emt 0:01:35]} 39. Rd1 {[%emt 0:01:33]} Ndc5 {[%emt 0:01:02]} 40. Bxc5 {[%emt 0:00:00]} Nxc5 {[%emt 0:00:00]} 41. Bxf7 {[%emt 0:01:27]} Kg7 {[%emt 0:01:16]} 42. Bc4 {[%emt 0:01:17]} Rb8 {[%emt 0:05:26]} 43. Rd5 {[%emt 0:09:44]} Rc8 {[%emt 0:02:43]} 44. Re5 {[%emt 0:01:20]} Nxa4 {[%emt 0:06:24]} 45. bxa4 {[%emt 0:02:12]} Rxc4 {[%emt 0:00:08]} 46. Rxa5 {[%emt 0:00:04]} g5 {[%emt 0:01:04]} 47. g3 {[%emt 0:00:41]} Rc3 {[%emt 0:01:10]} 48. Kg2 {[%emt 0:01:50]} Ra3 {[%emt 0:00:45]} 49. Ra8 {[%emt 0:01:28]} h5 {[%emt 0:00:58]} 50. Ra7+ {[%emt 0:04:24]} Kg6 {[%emt 0:00:27]} 51. Ra6+ {[%emt 0:01:23]} Kg7 {[%emt 0:00:40]} 52. f4 {[%emt 0:02:16]} h4 {[%emt 0:08:31]} 53. f5 {[%emt 0:07:48]} Rxg3+ {[%emt 0:00:18]} 54. Kh2 {[%emt 0:00:15]} Kf7 {[%emt 0:01:09]} 55. a5 {[%emt 0:01:41]} Rf3 {[%emt 0:00:22]} 56. f6 {[%emt 0:00:10]} Ra3 {[%emt 0:00:51]} 57. Kg2 {[%emt 0:01:18]} Kg6 {[%emt 0:00:08]} 58. Kh2 {[%emt 0:00:51]} Kf7 {[%emt 0:00:07]} 59. Kg2 {[%emt 0:00:35]} Kg6 {[%emt 0:00:09]} 60. Kh2 {[%emt 0:00:42]} Kf7 {[%emt 0:00:11]} 1/2-1/2

[Event "European Womens-ch 2025"]
[Site "Rhodes"]
[Date "2025.04.10"]
[Round "10.41"]
[White "Schloffer, Jasmin-Denise"]
[Black "Grapsa, Georgia"]
[Result "1/2-1/2"]
[Annotator "ChessBase"]
[ECO "E44"]
[WhiteElo "2188"]
[BlackElo "2065"]
[PlyCount "77"]
[EventDate "2025.03.29"]
[EventType "swiss"]
[EventCountry "GRE"]
[SourceTitle "playchess.com"]
[Source "ChessBase"]
[SourceQuality "1"]
[TimeControl "40/5400+30:1800+30"]

1. d4 {[%emt 0:00:02]} Nf6 {[%emt 0:02:47]} 2. c4 {[%emt 0:00:07]} e6 {[%emt 0:00:14]} 3. Nc3 {[%emt 0:00:08]} Bb4 {[%emt 0:00:14]} 4. e3 {[%emt 0:00:07]} b6 {[%emt 0:00:20]} 5. Nge2 {[%emt 0:00:16]} Ne4 {[%emt 0:02:22]} 6. Qc2 {[%emt 0:00:14]} Bb7 {[%emt 0:00:22]} 7. a3 {[%emt 0:00:27]} Bxc3+ {[%emt 0:01:47]} 8. Nxc3 {[%emt 0:00:07]} Nxc3 {[%emt 0:00:56]} 9. Qxc3 {[%emt 0:00:08]} a5 {[%emt 0:03:13]} 10. b3 {[%emt 0:04:22]} d6 {[%emt 0:03:36]} 11. Bb2 {[%emt 0:01:16]} Nd7 {[%emt 0:08:42]} 12. f3 {[%emt 0:09:59]} Qh4+ {[%emt 0:01:41]} 13. g3 {[%emt 0:00:45]} Qh5 {[%emt 0:01:26]} 14. e4 {[%emt 0:01:34]} f5 {[%emt 0:00:22]} 15. d5 {[%emt 0:08:06]} fxe4 {[%emt 0:02:10]} 16. fxe4 {[%emt 0:04:24]} Ne5 {[%emt 0:14:35]} 17. Be2 {[%emt 0:02:41]} Qg6 {[%emt 0:00:21]} 18. Qe3 {[%emt 0:09:04]} O-O {[%emt 0:03:19]} 19. Bxe5 {[%emt 0:04:56]} dxe5 {[%emt 0:00:04]} 20. O-O-O {[%emt 0:00:22]} Rad8 {[%emt 0:02:39]} 21. Rd2 {[%emt 0:04:09]} exd5 {[%emt 0:14:50]} 22. cxd5 {[%emt 0:03:20]} Qd6 {[%emt 0:09:46]} 23. Kb2 {[%emt 0:00:40]} h6 {[%emt 0:10:16]} 24. Rc1 {[%emt 0:05:13]} c5 {[%emt 0:02:35]} 25. Bb5 {[%emt 0:03:59]} Rf6 {[%emt 0:01:38]} 26. Rcc2 {[%emt 0:01:15]} Rdf8 {[%emt 0:00:44]} 27. Rf2 {[%emt 0:02:24]} Bc8 {[%emt 0:00:16]} 28. Rxf6 {[%emt 0:01:58]} Qxf6 {[%emt 0:00:45]} 29. Rd2 {[%emt 0:02:39]} Qd6 {[%emt 0:00:47]} 30. Qe2 {[%emt 0:07:28]} Bh3 {[%emt 0:03:58]} 31. Qh5 {[%emt 0:02:04]} Bf1 {[%emt 0:02:32]} 32. Bxf1 {[%emt 0:02:52]} Rxf1 {[%emt 0:00:03]} 33. Qe2 {[%emt 0:01:51]} Rf8 {[%emt 0:00:43]} 34. Qb5 {[%emt 0:03:36]} Rf6 {[%emt 0:01:10]} 35. Qc4 {[%emt 0:02:52]} Kh7 {[%emt 0:01:25]} 36. Qd3 {[%emt 0:00:29]} Kg8 {[%emt 0:01:06]} 37. Qc4 {[%emt 0:04:47]} Kh7 {[%emt 0:00:08]} 38. Qd3 {[%emt 0:00:50]} Kg8 {[%emt 0:00:08]} 39. Qc4 {[%emt 0:08:29]} 1/2-1/2

[Event "European Womens-ch 2025"]
[Site "Rhodes"]
[Date "2025.04.10"]
[Round "10.42"]
[White "Pavlidou, Ekaterini"]
[Black "Huseynova, Lala"]
[Result "1-0"]
[Annotator "ChessBase"]
[ECO "D00"]
[WhiteElo "2160"]
[BlackElo "2065"]
[PlyCount "135"]
[EventDate "2025.03.29"]
[EventType "swiss"]
[EventCountry "GRE"]
[SourceTitle "playchess.com"]
[Source "ChessBase"]
[SourceQuality "1"]
[TimeControl "40/5400+30:1800+30"]

1. d4 {[%emt 0:02:46]} Nf6 {[%emt 0:00:06]} 2. Nc3 {[%emt 0:01:01]} d5 {[%emt 0:00:32]} 3. Bf4 {[%emt 0:00:27]} Bf5 {[%emt 0:02:17]} 4. f3 {[%emt 0:00:38]} h6 {[%emt 0:04:00]} 5. g4 {[%emt 0:00:17]} Bg6 {[%emt 0:00:39]} 6. h4 {[%emt 0:01:20]} e6 {[%emt 0:02:50]} 7. e3 {[%emt 0:01:22]} c5 {[%emt 0:07:02]} 8. Nb5 {[%emt 0:04:05]} Na6 {[%emt 0:01:52]} 9. c3 {[%emt 0:00:16]} Be7 {[%emt 0:07:59]} 10. h5 {[%emt 0:04:42]} Bh7 {[%emt 0:00:11]} 11. Qd2 {[%emt 0:02:15]} O-O {[%emt 0:04:24]} 12. Nh3 {[%emt 0:04:06]} Nd7 {[%emt 0:00:53]} 13. Nf2 {[%emt 0:02:27]} Nab8 {[%emt 0:09:11]} 14. Bc7 {[%emt 0:14:38]} Qc8 {[%emt 0:00:18]} 15. Bg3 {[%emt 0:00:34]} a6 {[%emt 0:02:32]} 16. Na3 {[%emt 0:02:49]} Nc6 {[%emt 0:03:26]} 17. Bd3 {[%emt 0:04:26]} Bxd3 {[%emt 0:09:24]} 18. Nxd3 {[%emt 0:01:49]} b5 {[%emt 0:00:51]} 19. Nc2 {[%emt 0:01:16]} a5 {[%emt 0:04:34]} 20. dxc5 {[%emt 0:09:54]} Nxc5 {[%emt 0:00:21]} 21. Nxc5 {[%emt 0:03:29]} Bxc5 {[%emt 0:00:02]} 22. g5 {[%emt 0:05:27]} hxg5 {[%emt 0:02:17]} 23. h6 {[%emt 0:01:41]} g6 {[%emt 0:03:50]} 24. h7+ {[%emt 0:01:05]} Kh8 {[%emt 0:01:34]} 25. O-O-O {[%emt 0:02:53]} b4 {[%emt 0:09:06]} 26. Kb1 {[%emt 0:11:08]} Qb7 {[%emt 0:02:01]} 27. Rc1 {[%emt 0:02:11]} b3 {[%emt 0:01:24]} 28. Nd4 {[%emt 0:00:53]} bxa2+ {[%emt 0:05:39]} 29. Ka1 {[%emt 0:00:01]} Ne7 {[%emt 0:07:20]} 30. Nxe6 {[%emt 0:01:05]} Qb6 {[%emt 0:02:17]} 31. Nxf8 {[%emt 0:01:44]} Rxf8 {[%emt 0:00:29]} 32. Be5+ {[%emt 0:01:21]} f6 {[%emt 0:00:02]} 33. Bd4 {[%emt 0:00:17]} Nf5 {[%emt 0:00:56]} 34. Bxc5 {[%emt 0:00:12]} Qxc5 {[%emt 0:00:01]} 35. e4 {[%emt 0:01:02]} dxe4 {[%emt 0:00:18]} 36. fxe4 {[%emt 0:00:02]} Ng3 {[%emt 0:01:46]} 37. Rhe1 {[%emt 0:00:18]} Qe5 {[%emt 0:01:25]} 38. Qh2 {[%emt 0:00:50]} Rd8 {[%emt 0:00:39]} 39. Re3 {[%emt 0:05:28]} Nh5 {[%emt 0:00:33]} 40. Qxe5 {[%emt 0:08:15]} fxe5 41. Rg1 {[%emt 0:00:00]} Kxh7 {[%emt 0:01:10]} 42. Rxg5 {[%emt 0:00:00]} Re8 {[%emt 0:00:01]} 43. Rd3 {[%emt 0:00:00]} Kh6 {[%emt 0:03:25]} 44. Rg1 {[%emt 0:01:54]} Nf4 {[%emt 0:32:53]} 45. Rd7 {[%emt 0:02:48]} Re6 {[%emt 0:00:00]} 46. Kxa2 {[%emt 0:03:42]} g5 {[%emt 0:00:00]} 47. Kb3 {[%emt 0:03:19]} Nh3 {[%emt 0:00:00]} 48. Rg2 {[%emt 0:01:41]} Nf4 {[%emt 0:00:00]} 49. Rh2+ {[%emt 0:01:08]} Nh5 {[%emt 0:00:00]} 50. Rd8 {[%emt 0:00:37]} Kg6 {[%emt 0:00:00]} 51. Rg8+ {[%emt 0:00:45]} Ng7 {[%emt 0:00:00]} 52. Rg2 {[%emt 0:00:39]} Re7 {[%emt 0:00:00]} 53. Kc4 {[%emt 0:06:28]} Kf7 {[%emt 0:00:00]} 54. Ra8 {[%emt 0:00:08]} Ne6 {[%emt 0:00:00]} 55. Rxa5 {[%emt 0:00:31]} Rc7+ {[%emt 0:00:00]} 56. Kb3 {[%emt 0:01:06]} Nc5+ {[%emt 0:00:00]} 57. Rxc5 {[%emt 0:01:27]} Rxc5 {[%emt 0:00:00]} 58. Rxg5 {[%emt 0:00:06]} Kf6 {[%emt 0:00:00]} 59. Rf5+ {[%emt 0:01:23]} Ke6 {[%emt 0:00:00]} 60. c4 {[%emt 0:00:47]} Rc8 {[%emt 0:00:00]} 61. Rf2 {[%emt 0:02:48]} Rh8 {[%emt 0:00:00]} 62. Re2 {[%emt 0:01:02]} Kf6 {[%emt 0:00:00]} 63. c5 {[%emt 0:00:37]} Kg5 {[%emt 0:00:00]} 64. Kc4 {[%emt 0:01:02]} Kf4 {[%emt 0:00:00]} 65. b4 {[%emt 0:00:30]} Rh1 {[%emt 0:00:00]} 66. b5 {[%emt 0:00:36]} Kf3 {[%emt 0:00:00]} 67. Rc2 {[%emt 0:01:36]} Kxe4 {[%emt 0:00:00]} 68. c6 {[%emt 0:00:08]} 1-0